fUSD/lending_fUSD_20260202
["ID","MTS","AMOUNT","RATE_DAILY","PERIOD"]
[404283430,1770029445081,-721.12765535,0.00016195,2]
[404283431,1770029445090,-232.68774879,0.00016195,2]
[404283432,1770029445100,-174.61919141,0.00016195,2]
[404283433,1770029445109,-209.40437684,0.00016195,2]
[404283434,1770029445118,-250.0,0.00016195,2]
[404283435,1770029445127,-250.0,0.00016195,2]
[404283436,1770029445136,-250.0,0.00016195,2]
[404283437,1770029445146,-250.0,0.00016195,2]
[404283438,1770029445156,-250.0,0.00016195,2]
[404283439,1770029445165,-250.0,0.00016195,2]
[404283440,1770029445174,-250.0,0.00016195,2]
[404283441,1770029445183,-250.0,0.00016195,2]
[404283442,1770029445192,-250.0,0.00016195,2]
[404283443,1770029445201,-250.0,0.00016195,2]
[404283444,1770029445209,-250.0,0.00016195,2]
[404283445,1770029445218,-1428.38747117,0.00016195,2]
[404283446,1770029445227,-578.20924308,0.00016195,2]
[404283447,1770029445236,-500.0,0.00016195,2]
[404283448,1770029445244,-500.0,0.00016195,2]
[404283449,1770029445253,-282.06,0.00016202,2]
[404283450,1770029445262,-217.15233878,0.0001625,2]
[404283451,1770029445271,-770.39,0.00016263,2]
[404283452,1770029445280,-1852.42,0.00016304,2]
[404283453,1770029445288,-225.18697532,0.00016305,2]
[404283454,1770029445298,-500.0,0.00016339,2]
[404283455,1770029445307,-233.51889341,0.0001636,2]
[404283456,1770029445316,-163.0,0.000164,2]
[404283457,1770029445325,-242.15909246,0.00016415,2]
[404283458,1770029445334,-33906.84560869,0.00016437,2]
[404283459,1770029445343,-1330.2,0.00016438,2]
[404283460,1770029445351,-500.0,0.00016438,2]
[404283461,1770029445360,-583.52076571,0.00016438,2]
[404283462,1770029445369,-1882.57323472,0.00016438,2]
[404283463,1770029445378,-1882.57323472,0.00016438,2]
[404283464,1770029445387,-1882.57323472,0.00016438,2]
[404283465,1770029445396,-1882.57323472,0.00016438,2]
[404283466,1770029445405,-1882.57323472,0.00016438,2]
[404283467,1770029445415,-1882.57323472,0.00016438,2]
[404283468,1770029445423,-1882.57323472,0.00016438,2]
[404283469,1770029445432,-1882.57323472,0.00016438,2]
[404283470,1770029445441,-1882.57323472,0.00016438,2]
[404283471,1770029445450,-1882.57323472,0.00016438,2]
[404283472,1770029445459,-1882.57323472,0.00016438,2]
[404283473,1770029445468,-1882.57323472,0.00016438,2]
[404283474,1770029445477,-1882.57323472,0.00016438,2]
[404283475,1770029445486,-1882.57323472,0.00016438,2]
[404283476,1770029445495,-1882.57323472,0.00016438,2]
[404283477,1770029445504,-1882.57323472,0.00016438,2]
[404283478,1770029445512,-1882.57323472,0.00016438,2]
[404283479,1770029445521,-1882.57323472,0.00016438,2]
[404283480,1770029445530,-1882.57323472,0.00016438,2]
[404283481,1770029445541,-1882.57323472,0.00016438,2]
[404283482,1770029445550,-1882.57323472,0.00016438,2]
[404283483,1770029445559,-1882.57323472,0.00016438,2]
[404283484,1770029445568,-1882.57323472,0.00016438,2]
[404283485,1770029445577,-1882.57323472,0.00016438,2]
[404283486,1770029445586,-1882.57323472,0.00016438,2]
[404283487,1770029445595,-1882.57323472,0.00016438,2]
[404283488,1770029445604,-1882.57323472,0.00016438,2]
[404283489,1770029445613,-1882.57323472,0.00016438,2]
[404283490,1770029445624,-1882.57323472,0.00016438,2]
[404283491,1770029445632,-1882.57323472,0.00016438,2]
[404283492,1770029445641,-1882.57323472,0.00016438,2]
[404283493,1770029445650,-1882.57323472,0.00016438,2]
[404283494,1770029445659,-1882.57323472,0.00016438,2]
[404283495,1770029445668,-1882.57323472,0.00016438,2]
[404283496,1770029445677,-1882.57323472,0.00016438,2]
[404283497,1770029445687,-1882.57323472,0.00016438,2]
[404283498,1770029445695,-1882.57323472,0.00016438,2]
[404283499,1770029445704,-1882.57323472,0.00016438,2]
[404283500,1770029445714,-1882.57323472,0.00016438,2]
[404283501,1770029445723,-1882.57323472,0.00016438,2]
[404283502,1770029445732,-1882.57323472,0.00016438,2]
[404283503,1770029445742,-1882.57323472,0.00016438,2]
[404283504,1770029445751,-1882.57323472,0.00016438,2]
[404283505,1770029445760,-1882.57323472,0.00016438,2]
[404283506,1770029445770,-1882.57323472,0.00016438,2]
[404283507,1770029445779,-1882.57323472,0.00016438,2]
[404283508,1770029445789,-1882.57323472,0.00016438,2]
[404283509,1770029445799,-1882.57323472,0.00016438,2]
[404283510,1770029445808,-1882.57323472,0.00016438,2]
[404283511,1770029445817,-1882.57323472,0.00016438,2]
[404283512,1770029445826,-1882.57323472,0.00016438,2]
[404283513,1770029445836,-1882.57323472,0.00016438,2]
[404283514,1770029445845,-1882.57323472,0.00016438,2]
[404283515,1770029445855,-1882.57323472,0.00016438,2]
[404283516,1770029445866,-1882.57323472,0.00016438,2]
[404283517,1770029445875,-1882.57323472,0.00016438,2]
[404283518,1770029445885,-1882.57323472,0.00016438,2]
[404283519,1770029445899,-1882.57323472,0.00016438,2]
[404283520,1770029445909,-1863.74750238,0.00016438,2]
[404283521,1770029445919,-1863.74750238,0.00016438,2]
[404283522,1770029445928,-1863.74750238,0.00016438,2]
[404283523,1770029445937,-1863.74750238,0.00016438,2]
[404283524,1770029445946,-1863.74750238,0.00016438,2]
[404283525,1770029445955,-1863.74750238,0.00016438,2]
[404283526,1770029445964,-1863.74750238,0.00016438,2]
[404283527,1770029445973,-1863.74750238,0.00016438,2]
[404283528,1770029445983,-1863.74750238,0.00016438,2]
[404283529,1770029445992,-1863.74750238,0.00016438,2]
[404283530,1770029446002,-1863.74750238,0.00016438,2]
[404283531,1770029446011,-1863.74750238,0.00016438,2]
[404283532,1770029446021,-1863.74750238,0.00016438,2]
[404283533,1770029446030,-1863.74750238,0.00016438,2]
[404283534,1770029446039,-1863.74750238,0.00016438,2]
[404283535,1770029446049,-1863.74750238,0.00016438,2]
[404283536,1770029446059,-1863.74750238,0.00016438,2]
[404283537,1770029446069,-1863.74750238,0.00016438,2]
[404283538,1770029446079,-1863.74750238,0.00016438,2]
[404283539,1770029446088,-1863.74750238,0.00016438,2]
[404283540,1770029446097,-1863.74750238,0.00016438,2]
[404283541,1770029446107,-1863.74750238,0.00016438,2]
[404283542,1770029446117,-1863.74750238,0.00016438,2]
[404283543,1770029446126,-1863.74750238,0.00016438,2]
[404283544,1770029446137,-1863.74750238,0.00016438,2]
[404283545,1770029446146,-1863.74750238,0.00016438,2]
[404283546,1770029446155,-1863.74750238,0.00016438,2]
[404283547,1770029446164,-1863.74750238,0.00016438,2]
[404283548,1770029446173,-1863.74750238,0.00016438,2]
[404283549,1770029446182,-1863.7475023,0.00016438,2]
[404283550,1770029446191,-1872.11781497,0.00016438,2]
[404283551,1770029446201,-250.55733734,0.00016438,2]
[404283552,1770029446210,-800.78453244,0.00016438,2]
[404283553,1770029446219,-900.0,0.00016438,2]
[404283554,1770029446228,-251.11897888,0.0001647,2]
[404283555,1770029446237,-200.02287089,0.00016479,2]
[404283556,1770029446431,-160.29,0.000165,2]
[404283557,1770029446466,-260.4103811,0.00016525,2]
[404283558,1770029446475,-1500.0,0.00016568,2]
[404283559,1770029446484,-545.1454494,0.00016568,2]
[404283560,1770029446494,-1500.0,0.00016568,2]
[404283561,1770029446503,-624.86514765,0.00016568,2]
[404283562,1770029446512,-1500.0,0.00016568,2]
[404283563,1770029446522,-619.84098311,0.00016568,2]
[404283564,1770029446531,-1500.0,0.00016568,2]
[404283565,1770029446543,-1500.0,0.00016568,2]
[404283566,1770029446555,-1500.0,0.00016568,2]
[404283567,1770029446565,-1500.0,0.00016568,2]
[404283568,1770029446575,-505.24936027,0.00016568,2]
[404283569,1770029446588,-505.54193795,0.00016568,2]
[404283570,1770029446598,-345.31167706,0.00016568,2]
[404283571,1770029446607,-1500.0,0.00016568,2]
[404283572,1770029446617,-1315.28060531,0.00016568,2]
[404283573,1770029446626,-165.40489721,0.00016568,2]
[404283574,1770029446635,-1500.0,0.00016568,2]
[404283575,1770029446644,-1500.0,0.00016568,2]
[404283576,1770029446653,-504.6853335,0.00016568,2]
[404283577,1770029446665,-276.88278142,0.00016568,2]
[404283578,1770029446674,-1500.0,0.00016568,2]
[404283579,1770029446683,-1500.0,0.00016568,2]
[404283580,1770029446693,-1500.0,0.00016568,2]
[404283581,1770029446702,-1500.0,0.00016568,2]
[404283582,1770029446713,-1500.0,0.00016568,2]
[404283583,1770029446723,-18151.4089598,0.0001658,2]
[404283584,1770029446733,-270.0455652,0.0001658,2]
[404283585,1770029446742,-16905.2451747,0.00016631,2]
[404283586,1770029446752,-280.03725112,0.00016635,2]
[404283587,1770029446761,-2581.26,0.00016688,2]
[404283588,1770029446770,-290.39862941,0.0001669,2]
[404283589,1770029446780,-152.4,0.00016712,2]
[404283590,1770029446792,-162.33,0.00016733,2]
[404283591,1770029446801,-151.49674582,0.00016743,2]
[404283592,1770029446811,-217.15233878,0.00016743,2]
[404283593,1770029446821,-168.90333538,0.00016743,2]
[404283594,1770029446830,-891.61887448,0.00016743,2]
[404283595,1770029446840,-181.08010149,0.00016743,2]
[404283596,1770029446849,-217.15233878,0.00016743,2]
[404283597,1770029446859,-1481.23780761,0.00016743,2]
[404283598,1770029446868,-301.1433787,0.00016745,2]
[404283599,1770029446878,-152.49,0.00016792,2]
[404283600,1770029446888,-163.0,0.00016855,2]
[404283601,1770029446898,-2393.7410466,0.00016886,2]
[404283602,1770029446908,-500.0,0.00016887,2]
[404283603,1770029446918,-500.0,0.00016902,2]
[404283604,1770029446927,-703.13852903,0.00016959,2]
[404283605,1770029446936,-151.7199758,0.00017,2]
[404283606,1770029446947,-779.65372,0.00017,2]
[404283607,1770029446957,-839.0,0.0001704,2]
[404283608,1770029446966,-839.0,0.0001704,2]
[404283609,1770029446975,-5162.0,0.00017113,2]
[404283610,1770029446985,-1488.36339388,0.00017116,2]
[404283611,1770029446994,-1256.98671009,0.00017116,2]
[404283612,1770029447003,-508.230722,0.00017116,2]
[404283613,1770029447013,-974.64879752,0.00017116,2]
[404283614,1770029447022,-2000.0,0.00017116,2]
[404283615,1770029447032,-643.18674336,0.00017116,2]
[404283616,1770029447041,-1628.18837233,0.00017116,2]
[404283617,1770029447051,-2136.8475123,0.00017116,2]
[404283618,1770029447061,-2000.0,0.00017116,2]
[404283619,1770029447070,-689.68040771,0.00017116,2]
[404283620,1770029447080,-506.20015718,0.00017116,2]
[404283621,1770029447090,-1612.39809416,0.00017116,2]
[404283622,1770029447099,-2000.0,0.00017116,2]
[404283623,1770029447109,-2000.0,0.00017116,2]
[404283624,1770029447118,-2000.0,0.00017116,2]
[404283625,1770029447128,-18151.4089598,0.0001719,2]
[404283626,1770029447137,-1330.2,0.00017202,2]
[404283627,1770029447146,-500.0,0.00017233,2]
[404283628,1770029447155,-5162.0,0.00017236,2]
[404283629,1770029447165,-16905.2451747,0.00017249,2]
[404283630,1770029447184,-1000.0,0.0001726,2]
[404283631,1770029447197,-225.18697532,0.00017291,2]
[404283632,1770029447208,-924.60877284,0.00017291,2]
[404283633,1770029447218,-187.78006525,0.00017291,2]
[404283634,1770029447228,-225.18697532,0.00017291,2]
[404283635,1770029447238,-1536.04360649,0.00017291,2]
[404283636,1770029447248,-1500.0,0.000173,2]
[404283637,1770029447258,-772.93,0.00017304,2]
[404283638,1770029447268,-159.99318318,0.00017328,2]
[404283639,1770029447278,-2835.0,0.0001736,2]
[404283640,1770029447287,-163.0,0.0001736,2]
[404283641,1770029447298,-839.0,0.0001736,2]
[404283642,1770029447307,-163.0,0.0001736,2]
[404283643,1770029447316,-163.0,0.0001736,2]
[404283644,1770029447326,-200.0,0.00017371,2]
[404283645,1770029447336,-5162.0,0.00017378,2]
[404283646,1770029447346,-3238.8147,0.00017386,2]
[404283647,1770029447355,-4609.0,0.00017403,2]
[404283648,1770029447365,-507.10580581,0.00017435,2]
[404283649,1770029447375,-163.0,0.0001745,2]
[404283650,1770029447385,-5162.0,0.00017498,2]
[404283651,1770029447395,-8047.6214905,0.000175,2]
[404283652,1770029447405,-94460.4052707,0.000175,2]
[404283653,1770029447415,-13442.50995431,0.000175,2]
[404283654,1770029447424,-200.009499,0.0001753,2]
[404283655,1770029447434,-1000.0,0.00017534,2]
[404283656,1770029447444,-334.5472959,0.00017564,2]
[404283657,1770029447454,-200.0,0.00017572,2]
[404283658,1770029447464,-4763.0,0.00017627,2]
[404283659,1770029447474,-200.0,0.0001766,2]
[404283660,1770029447484,-447.23523297,0.00017664,2]
[404283661,1770029447493,-1002.53462592,0.00017664,2]
[404283662,1770029447503,-502.03881526,0.00017664,2]
[404283663,1770029447513,-1504.86417643,0.00017664,2]
[404283664,1770029447522,-716.63993214,0.00017664,2]
[404283665,1770029447531,-163.0,0.0001768,2]
[404283666,1770029447543,-839.0,0.0001768,2]
[404283667,1770029447552,-839.0,0.0001768,2]
[404283668,1770029447562,-4763.0,0.00017719,2]
[404283669,1770029447571,-25000.0,0.00017733,3]
[404283670,1770029447582,-403.0,0.00017734,2]
[404283671,1770029447592,-25000.0,0.00017742,3]
[404283672,1770029447601,-25000.0,0.0001775,3]
[404283673,1770029447610,-10091.57601831,0.00017756,2]
[404283674,1770029447621,-25000.0,0.00017759,3]
[404283675,1770029447630,-403.0,0.00017761,2]
[404283676,1770029447640,-25000.0,0.00017768,3]
[404283677,1770029447649,-839.0,0.0001777,2]
[404283678,1770029447660,-318.93387854,0.00017772,2]
[404283679,1770029447669,-25000.0,0.00017777,3]
[404283680,1770029447679,-25000.0,0.00017786,3]
[404283681,1770029447689,-25000.0,0.00017794,3]
[404283682,1770029447699,-18151.4089598,0.000178,2]
[404283683,1770029447708,-25000.0,0.00017803,3]
[404283684,1770029447718,-500.0,0.00017808,2]
[404283685,1770029447727,-1000.0,0.00017808,2]
[404283686,1770029447737,-25000.0,0.00017812,3]
[404283687,1770029447746,-2000.0,0.0001782,2]
[404283688,1770029447756,-2000.0,0.0001782,2]
[404283689,1770029447766,-25000.0,0.00017821,3]
[404283690,1770029447775,-25000.0,0.0001783,3]
[404283691,1770029447785,-25000.0,0.00017838,3]
[404283692,1770029447794,-233.51889341,0.00017839,2]
[404283693,1770029447804,-958.81929743,0.00017839,2]
[404283694,1770029447813,-194.72792766,0.00017839,2]
[404283695,1770029447823,-233.51889341,0.00017839,2]
[404283696,1770029447833,-1592.87721993,0.00017839,2]
[404283697,1770029447842,-253.0,0.00017846,2]
[404283698,1770029447851,-25000.0,0.00017847,3]
[404283699,1770029447861,-200.0,0.00017855,2]
[404283700,1770029447871,-200.0,0.00017856,2]
[404283701,1770029447880,-25000.0,0.00017856,3]
[404283702,1770029447889,-200.0,0.00017856,2]
[404283703,1770029447899,-200.0,0.00017856,2]
[404283704,1770029447908,-4763.0,0.00017858,2]
[404283705,1770029447918,-500.0,0.00017863,2]
[404283706,1770029447927,-25000.0,0.00017865,3]
[404283707,1770029447937,-16905.2451747,0.00017866,2]
[404283708,1770029447947,-25000.0,0.00017874,3]
[404283709,1770029447956,-25000.0,0.00017882,3]
[404283710,1770029447966,-25000.0,0.00017891,3]
[404283711,1770029447975,-1112.19265271,0.000179,2]
[404283712,1770029447985,-25000.0,0.000179,3]
[404283713,1770029447994,-10139.4576,0.000179,2]
[404283714,1770029448003,-703.13852903,0.000179,2]
[404283715,1770029448013,-17205.90121961,0.000179,3]
[404283716,1770029448022,-199.24021691,0.000179,2]
[404283717,1770029448032,-7719.25534853,0.000179,2]
[404283718,1770029448041,-12981.0,0.000179,2]
[404283719,1770029448051,-500.0,0.00017918,2]
[404283720,1770029448060,-161.21910117,0.00017961,2]
[404283721,1770029448069,-839.1806062,0.00017964,2]
[404283722,1770029448078,-312204.8049365,0.00017964,2]
[404283723,1770029448088,-1330.2,0.00017966,2]
[404283724,1770029448097,-506.1208044,0.00017972,2]
[404283725,1770029448107,-500.0,0.00017982,2]
[404283726,1770029448116,-162.33,0.00017988,2]
[404283727,1770029448126,-192.49583796,0.0001799,2]
[404283728,1770029448135,-200.0,0.00017998,2]
[404283729,1770029448144,-153.40029052,0.00017999,2]
[404283730,1770029448153,-300.0,0.00017999,2]
[404283731,1770029448163,-300.0,0.00017999,2]
[404283732,1770029448172,-300.0,0.00017999,2]
[404283733,1770029448183,-152.49,0.00018,2]
[404283734,1770029448193,-2174639.1664354,0.00018,2]
[404283746,1770029448530,-879.89709716,0.00012709,2]
[404283764,1770029638297,175.9,0.00011056,2]
[404283770,1770030191929,5000.01,0.0001094,2]
[404283771,1770030212098,2095.69,0.00010912,2]
[404283772,1770030212301,2095.69,0.00010941,2]
[404283773,1770030212511,808.62,0.00010969,2]
[404283774,1770030212536,1287.07,0.00010969,2]
[404283775,1770030212708,2095.69,0.00010998,2]
[404283776,1770030213126,2095.69,0.00011027,2]
[404283777,1770030213314,2095.69,0.00011055,2]
[404283778,1770030213766,2095.69,0.00011084,2]
[404283779,1770030213844,330.18,0.00011113,2]
[404283780,1770030213866,1765.51,0.00011113,2]
[404283781,1770030213953,2095.69,0.00011142,2]
[404283782,1770030214103,2095.69,0.0001117,2]
[404283783,1770030214314,2095.69,0.00011199,2]
[404283784,1770030214513,1947.43,0.00011228,2]
[404283785,1770030214538,148.26,0.00011228,2]
[404283786,1770030236694,-2095.69,0.00011256,2]
[404283836,1770030534661,166.66,0.00010959,2]
[404283837,1770030534715,166.66,0.00011068,2]
[404283838,1770030534929,166.66,0.00011178,2]
[404283839,1770030541752,-2095.69,0.00011285,2]
[404283840,1770030541781,-166.66,0.00011288,2]
[404283841,1770030541809,-250.0,0.00011292,2]
[404283842,1770030541837,-300.0,0.000113,2]
[404283843,1770030541865,-179.8228,0.00011308,2]
[404283844,1770030541898,-1919.9744,0.00011314,2]
[404283845,1770030542089,-175.7156,0.00011314,2]
[404283846,1770030542120,-250.0,0.00011322,2]
[404283847,1770030542148,-2095.69,0.00011343,2]
[404283848,1770030542176,-1200.0,0.0001137,2]
[404283849,1770030542207,-461.5088,0.00011371,2]
[404283850,1770030542568,-1634.1812,0.00011371,2]
[404283851,1770030542596,-362.54018819,0.0001139,2]
[404283852,1770030542625,-166.66,0.00011397,2]
[404283853,1770030542652,-300.0,0.00011398,2]
[404283854,1770030542679,-2095.69,0.000114,2]
[404283855,1770030542780,-300.0,0.00011369,2]
[404283856,1770030544638,-300.0,0.00011369,2]
[404283857,1770030544672,-591.22636008,0.00011398,2]
[404283858,1770030544703,-150.0,0.00011407,2]
[404283874,1770030547951,-250.0,0.00011388,2]
[404283876,1770030551439,-216.613346,0.00011408,2]
[404283877,1770030553783,-10000.01,0.00011408,2]
[404283878,1770030553899,-3880.36528218,0.00011408,2]
[404283879,1770030553933,-2239.27943564,0.00011408,2]
[404283880,1770030554016,-150.99,0.00011408,2]
[404283881,1770030554055,-9698.03,0.00011408,2]
[404283882,1770030554161,-3589.17339691,0.00011408,2]
[404283883,1770030554185,-2821.66320618,0.00011408,2]
[404283887,1770030595261,2414.82312477,0.000114,2]
[404283889,1770030600034,2414.82312477,0.000114,2]
[404283894,1770030631802,-441.00787928,0.00011429,2]
[404283895,1770030631814,-1654.68212072,0.00011429,2]
[404283896,1770030631823,-244.0,0.00011429,2]
[404283897,1770030631832,-300.0,0.00011456,2]
[404283898,1770030631841,-1200.0,0.00011456,2]
[404283899,1770030631849,-2095.69,0.00011457,2]
[404283900,1770030631859,-9999.99,0.00011457,2]
[404283901,1770030631868,-1229.84,0.00011457,2]
[404283902,1770030631877,-999.99,0.00011457,2]
[404283903,1770030631886,-150.99,0.00011457,2]
[404283904,1770030631895,-32299.10361216,0.0001149,2]
[404283905,1770030631904,-9999.99,0.0001149,2]
[404283906,1770030631912,-9999.99,0.0001149,2]
[404283907,1770030631922,-9999.99,0.0001149,2]
[404283908,1770030631932,-33906.84560869,0.00011499,2]
[404283909,1770030631943,-517.89356549,0.00011499,2]
[404283910,1770030631953,-52926.48410726,0.000115,2]
[404283911,1770030631964,-19466.34700839,0.000115,2]
[404283956,1770030639900,-738.34873444,0.000115,2]
[404283957,1770030639913,-17402.376772,0.000115,2]
[404283958,1770030640269,-86902.29321546,0.000115,2]
[404283959,1770030640280,-27922.27425086,0.000115,2]
[404283960,1770030640290,-1985.0,0.000115,2]
[404283961,1770030640303,-166.66,0.00011507,2]
[404283962,1770030640313,-1443.2,0.00011508,2]
[404283963,1770030640322,-299.99,0.00011508,2]
[404283964,1770030640332,-201.0,0.00011511,2]
[404283965,1770030640341,-1572.10290284,0.00011521,2]
[404283966,1770030640351,-1613.0,0.00011523,2]
[404283967,1770030640360,-500.0,0.00011552,2]
[404283968,1770030640369,-347.23037837,0.00011552,2]
[404283969,1770030640380,-95492.33639397,0.00011561,2]
[404283970,1770030640389,-602.69016774,0.00011588,2]
[404283971,1770030640398,-223.27584945,0.00011588,2]
[404283972,1770030640408,-7719.25534853,0.00011588,2]
[404283973,1770030640417,-500.0,0.00011681,2]
[404283974,1770030640426,-500.0,0.00011681,2]
[404283975,1770030640435,-500.0,0.00011681,2]
[404283976,1770030640444,-500.0,0.00011681,2]
[404283977,1770030640453,-500.0,0.00011681,2]
[404283978,1770030640462,-500.0,0.00011681,2]
[404283979,1770030640471,-500.0,0.00011681,2]
[404283980,1770030640480,-500.0,0.00011681,2]
[404283981,1770030640489,-500.0,0.00011681,2]
[404283982,1770030640500,-500.0,0.00011681,2]
[404283983,1770030640509,-500.0,0.00011681,2]
[404283984,1770030640519,-151.0,0.00011681,2]
[404283985,1770030640529,-151.0,0.00011681,2]
[404283986,1770030640538,-151.0,0.00011681,2]
[404283987,1770030640547,-151.0,0.00011681,2]
[404283988,1770030640556,-151.0,0.00011681,2]
[404283989,1770030640565,-151.0,0.00011681,2]
[404283990,1770030640575,-151.0,0.00011681,2]
[404283991,1770030640584,-151.0,0.00011681,2]
[404283992,1770030640594,-202.25964161,0.00011681,2]
[404283993,1770030640604,-151.0,0.00011681,2]
[404283994,1770030640613,-151.0,0.00011681,2]
[404283995,1770030640622,-151.0,0.00011681,2]
[404283996,1770030640631,-151.0,0.00011681,2]
[404283997,1770030640641,-500.0,0.00011681,2]
[404283998,1770030640650,-151.0,0.00011681,2]
[404283999,1770030640659,-151.0,0.00011681,2]
[404284000,1770030640668,-151.0,0.00011681,2]
[404284001,1770030640677,-151.0,0.00011681,2]
[404284002,1770030640686,-151.0,0.00011681,2]
[404284003,1770030640695,-151.0,0.00011681,2]
[404284004,1770030640705,-151.0,0.00011681,2]
[404284005,1770030640714,-151.0,0.00011681,2]
[404284006,1770030640723,-500.0,0.00011681,2]
[404284007,1770030640732,-500.0,0.00011681,2]
[404284008,1770030640741,-500.0,0.00011681,2]
[404284009,1770030640750,-500.0,0.00011681,2]
[404284010,1770030640759,-500.0,0.00011681,2]
[404284011,1770030640769,-151.0,0.00011681,2]
[404284012,1770030640778,-151.0,0.00011681,2]
[404284013,1770030640787,-500.0,0.00011681,2]
[404284014,1770030640796,-151.0,0.00011681,2]
[404284015,1770030640806,-500.0,0.00011681,2]
[404284016,1770030640815,-151.0,0.00011681,2]
[404284017,1770030640824,-500.0,0.00011681,2]
[404284018,1770030640833,-500.0,0.00011681,2]
[404284019,1770030640842,-151.0,0.00011681,2]
[404284020,1770030640851,-500.0,0.00011681,2]
[404284021,1770030640861,-151.0,0.00011681,2]
[404284022,1770030640870,-500.0,0.00011681,2]
[404284023,1770030640879,-151.0,0.00011681,2]
[404284024,1770030640888,-151.0,0.00011681,2]
[404284025,1770030640896,-151.0,0.00011681,2]
[404284026,1770030640906,-151.0,0.00011681,2]
[404284027,1770030640916,-151.0,0.00011681,2]
[404284028,1770030640926,-548.95546937,0.00011687,2]
[404284029,1770030640935,-328.12554161,0.00011688,2]
[404284030,1770030640949,-7764.82,0.00011693,2]
[404284031,1770030640958,-3140.214,0.00011752,2]
[404284032,1770030640968,-159.764,0.00011752,2]
[404284033,1770030640976,-41747.76,0.00011765,2]
[404284034,1770030640988,-1012.0,0.00011826,2]
[404284035,1770030640997,-500.0,0.0001192,2]
[404284036,1770030641008,-150.0,0.00012031,2]
[404284037,1770030641018,-500.0,0.00012031,2]
[404284038,1770030641027,-150.0,0.00012031,2]
[404284039,1770030641036,-204.76107445,0.00012031,2]
[404284040,1770030641046,-500.0,0.00012031,2]
[404284041,1770030641056,-500.0,0.00012031,2]
[404284042,1770030641066,-150.0,0.00012031,2]
[404284043,1770030641075,-2076.0,0.00012031,2]
[404284044,1770030641084,-500.0,0.00012031,2]
[404284045,1770030641094,-313.98143387,0.00012053,2]
[404284046,1770030641103,-500.0,0.00012086,2]
[404284047,1770030641112,-150.0,0.00012086,2]
[404284048,1770030641122,-500.0,0.00012086,2]
[404284049,1770030641131,-500.0,0.00012086,2]
[404284050,1770030641141,-150.0,0.00012086,2]
[404284051,1770030641150,-2076.0,0.00012086,2]
[404284052,1770030641159,-500.0,0.00012086,2]
[404284053,1770030641169,-9999.99,0.00012087,2]
[404284054,1770030641178,-52351.12,0.00012117,2]
[404284055,1770030641187,-16336.26806382,0.00012127,2]
[404284056,1770030641196,-16108.86660308,0.00012127,2]
[404284057,1770030641207,-500.0,0.00012141,2]
[404284058,1770030641216,-156.44868677,0.00012141,2]
[404284059,1770030641230,-316.97590661,0.00012141,2]
[404284060,1770030641239,-500.0,0.00012141,2]
[404284061,1770030641248,-150.0,0.00012141,2]
[404284062,1770030641258,-2076.0,0.00012141,2]
[404284063,1770030641267,-500.0,0.00012141,2]
[404284064,1770030641277,-500.0,0.00012195,2]
[404284065,1770030641286,-500.0,0.00012195,2]
[404284066,1770030641295,-150.0,0.00012195,2]
[404284067,1770030641304,-2076.0,0.00012195,2]
[404284068,1770030641313,-500.0,0.00012195,2]
[404284069,1770030641323,-500.0,0.00012229,2]
[404284070,1770030641332,-500.0,0.0001225,2]
[404284071,1770030641341,-500.0,0.0001225,2]
[404284072,1770030641350,-150.0,0.0001225,2]
[404284073,1770030641359,-2076.0,0.0001225,2]
[404284074,1770030641369,-500.0,0.0001225,2]
[404284075,1770030641378,-500.0,0.00012305,2]
[404284076,1770030641387,-500.0,0.00012305,2]
[404284077,1770030641396,-226.74400397,0.00012305,2]
[404284078,1770030641405,-2076.0,0.00012305,2]
[404284079,1770030641414,-500.0,0.00012305,2]